bitfinex-derivatives/quotes_BNBF0:USTF0_20260221
["timestamp","ask_amount","ask_price","bid_price","bid_amount"]
[1771714792958,0.98216648,626.19,625.41,2.38999934]
[1771714793162,0.98216648,626.18,625.4,2.38999934]
[1771714793360,0.98216648,626.17,625.43,2.38999934]
[1771714793561,0.98216648,626.16,625.44,2.38999934]
[1771714793762,0.98216648,626.15,625.44,2.38999934]
[1771714793961,0.98216648,626.14,625.44,2.38999934]
[1771714794263,1.19331738,626.35,625.45,2.38999934]
[1771714794465,0.98129435,626.34,625.45,2.38999934]
[1771714794761,0.98129435,626.33,625.45,2.38999934]
[1771714794965,0.98129435,626.32,625.45,2.38999934]
[1771714795167,0.98129435,626.31,625.44,2.38999934]
[1771714795362,0.98129435,626.3,625.44,2.38999934]
[1771714795563,0.98129435,626.29,625.43,2.38999934]
[1771714795866,0.98129435,626.28,625.43,2.38999934]
[1771714796064,0.98129435,626.27,625.43,2.38999934]
[1771714796267,0.98129435,626.26,625.42,2.38999934]
[1771714796470,1.19331738,626.42,625.6,1.59207535]
[1771714797169,1.19331738,626.43,625.59,1.59207535]
[1771714798368,1.19331738,626.44,625.58,1.59207535]
[1771714801273,1.19331738,626.44,625.46,2.38999934]
[1771714801274,1.19331738,626.42,625.55,1.59207535]
[1771714801572,1.19331738,626.42,625.54,1.59207535]
[1771714801769,1.19331738,626.41,625.54,1.59207535]
[1771714802172,1.19331738,626.39,625.51,1.59207535]
[1771714802469,1.19331738,626.37,625.49,1.59207535]
[1771714802770,1.19331738,626.36,625.48,1.59207535]
[1771714803370,1.19331738,626.36,625.49,1.59207535]
[1771714803874,1.19331738,626.37,625.5,1.59207535]
[1771714808075,1.19331738,626.38,625.5,1.59207535]
[1771714808279,1.19331738,626.37,625.5,1.59207535]
[1771714817284,1.19331738,626.36,625.51,1.59207535]
[1771714820183,1.19331738,626.36,625.52,1.59207535]
[1771714821287,1.19331738,626.35,625.52,1.59207535]
[1771714823083,1.19331738,626.35,625.53,1.59207535]
[1771714823288,1.19331738,626.34,625.53,1.59207535]
[1771714825285,1.19331738,626.34,625.54,1.59207535]
[1771714826388,1.19331738,626.33,625.54,1.59207535]
[1771714827089,1.19331738,626.33,625.55,1.59207535]
[1771714828084,1.19331738,626.32,625.55,1.59207535]
[1771714829189,1.19331738,626.32,625.56,1.59207535]
[1771714830190,1.19331738,626.31,625.56,1.59207535]
[1771714831094,1.19331738,626.3,625.57,1.59207535]
[1771714832094,1.19331738,626.3,625.58,1.59207535]
[1771714834196,1.19331738,626.29,625.58,1.59207535]
[1771714835193,1.19331738,626.29,625.59,1.59207535]
[1771714838697,1.19331738,626.29,625.6,1.775]
[1771714840198,1.19331738,626.28,625.6,1.775]
[1771714842198,1.19331738,626.28,625.6,3.36707535]
[1771714843294,1.19331738,626.27,625.6,3.36707535]
[1771714844197,1.19331738,626.27,625.61,1.59207535]
[1771714846300,0.2779697,626.71,625.62,1.59207535]
[1771714846301,1.19331738,626.26,625.62,1.59207535]
[1771714848399,1.19331738,626.25,625.62,1.59207535]
[1771714856609,1.19331738,626.26,625.62,1.59207535]
[1771714886631,1.19331738,626.26,625.63,1.59207535]
[1771714887730,1.19331738,626.26,625.64,1.672]
[1771714909545,1.19331738,626.33,625.7,1.59207535]
[1771714910348,1.19331738,626.34,625.68,1.59207535]
[1771714911344,1.59061449,626.46,625.68,1.59207535]
[1771714911345,1.19331738,626.35,625.68,1.59207535]
[1771714911845,1.19331738,626.38,625.71,1.59207535]
[1771714912348,1.19331738,626.39,625.71,1.59207535]
[1771714913250,1.19331738,626.39,625.7,1.59207535]
[1771714914252,1.19331738,626.4,625.7,1.59207535]
[1771714915248,1.19331738,626.4,625.69,1.59207535]
[1771714916353,1.19331738,626.41,625.69,1.59207535]
[1771714918347,1.19331738,626.42,625.69,1.59207535]
[1771714918947,1.19331738,626.41,625.69,1.59207535]
[1771714919351,1.19331738,626.42,625.69,1.59207535]
[1771714922455,1.19331738,626.42,625.68,1.59207535]
[1771714924753,1.19331738,626.47,625.73,1.59207535]
[1771714924959,0.2779697,626.71,625.64,1.672]
[1771714924960,1.19331738,626.49,625.75,1.59207535]
[1771714925354,1.19331738,626.49,625.74,1.59207535]
[1771714925856,1.19331738,626.5,625.74,1.59207535]
[1771714927253,1.19331738,626.5,625.73,1.59207535]
[1771714928359,1.19331738,626.51,625.73,1.59207535]
[1771714928558,1.19331738,626.51,625.74,1.811]
[1771714932258,1.19331738,626.52,625.74,1.811]
[1771714945372,1.19331738,626.54,625.75,1.59207535]
[1771714945568,1.19331738,626.56,625.77,1.59207535]
[1771714949474,1.19331738,626.56,625.78,1.59207535]
[1771714949673,1.19331738,626.57,625.79,1.59207535]
[1771714951277,1.19331738,626.57,625.8,1.59207535]
[1771714952279,1.19331738,626.56,625.8,1.59207535]
[1771714954283,1.19331738,626.55,625.81,1.59207535]
[1771714956583,1.19331738,626.6,625.86,1.59207535]
[1771714957187,1.19331738,626.61,625.87,1.59207535]
[1771714957387,1.19331738,626.67,625.93,1.59207535]
[1771714958388,1.19331738,626.68,625.92,1.59207535]
[1771714958686,1.19331738,626.7,625.94,1.59207535]
[1771714958888,1.19331738,626.72,625.96,1.59207535]
[1771714959285,1.19331738,626.73,625.95,1.59207535]
[1771714960289,1.19331738,626.73,625.94,1.59207535]
[1771714961389,1.19331738,626.74,625.93,1.59207535]
[1771714963390,1.19331738,626.75,625.92,1.59207535]
[1771714965292,1.19331738,626.75,625.81,2.38999934]
[1771714965293,1.19331738,626.76,625.91,1.59207535]
[1771714966191,1.19331738,626.76,625.8,2.38999934]
[1771714966192,1.19331738,626.75,625.92,1.59207535]
[1771714966495,1.19331738,626.76,625.91,1.59207535]
[1771714972501,1.19331738,626.77,625.9,1.59207535]
[1771714975100,1.19331738,626.76,625.89,1.59207535]
[1771714975302,2.38592174,626.98,625.74,1.811]
[1771714975303,1.19331738,626.75,625.88,1.59207535]
[1771714975500,1.19331738,626.75,625.89,1.59207535]
[1771714975703,1.19331738,626.76,625.89,1.59207535]
[1771714979405,1.19331738,626.78,625.92,1.59207535]
[1771714981512,1.19331738,626.77,625.91,1.59207535]
[1771714981712,1.19331738,626.75,625.89,1.59207535]
[1771714982414,1.19331738,626.75,625.9,1.59207535]
[1771714982819,1.19331738,626.76,625.91,1.59207535]
[1771714983214,1.19331738,626.76,625.92,1.415]
[1771714986321,1.19331738,626.75,625.92,3.00707535]
[1771714989319,1.19331738,626.74,625.93,1.59207535]
[1771714991017,1.19331738,626.73,625.92,3.00707535]
[1771714991222,1.19331738,626.72,625.92,3.00707535]
[1771714992122,1.19331738,626.68,625.92,1.415]
[1771714992447,1.19331738,626.65,625.92,1.415]
[1771714992817,0.27776447,627.09,625.92,1.415]
[1771714992818,1.19331738,626.64,625.92,1.415]
[1771714993023,1.19331738,626.59,625.92,1.415]
[1771714994521,1.19331738,626.55,625.92,1.415]
[1771714995121,1.19331738,626.56,625.92,1.415]
[1771714995320,1.19331738,626.49,625.92,1.415]
[1771714995520,1.59061449,626.6,625.92,1.415]
[1771714995521,1.19331738,626.48,625.92,1.415]
[1771714995921,1.19331738,626.47,625.92,1.415]
[1771714996126,1.19331738,626.48,625.92,1.415]
[1771714997225,2.38592174,626.71,625.92,1.415]
[1771714997226,1.19331738,626.49,625.92,1.415]
[1771714998826,1.19331738,626.5,625.92,1.415]
[1771714999224,1.19331738,626.51,625.92,1.415]
[1771715001126,1.19331738,626.52,625.92,1.415]
[1771715003129,1.19331738,626.53,625.92,1.415]
[1771715004233,1.19331738,626.53,625.64,1.59207535]
[1771715005229,1.19331738,626.54,625.64,1.59207535]
[1771715006236,1.19331738,626.54,625.63,1.59207535]
[1771715006838,1.19331738,626.52,625.61,1.59207535]
[1771715008339,1.19331738,626.52,625.62,1.431]
[1771715010239,1.19331738,626.53,625.62,1.431]
[1771715013944,1.19331738,626.51,625.62,1.431]
[1771715014140,1.19331738,626.48,625.62,1.431]
[1771715014444,1.19331738,626.41,625.62,1.431]
[1771715014844,1.19331738,626.36,625.62,1.431]
[1771715015146,1.19331738,626.37,625.62,1.431]
[1771715015852,1.19331738,626.38,625.62,1.431]
[1771715016155,1.19331738,626.39,625.62,1.431]
[1771715016352,1.19331738,626.4,625.62,1.431]
[1771715018251,1.19331738,626.41,625.62,1.431]
[1771715021453,1.19331738,626.39,625.62,1.431]
[1771715028259,1.19331738,626.38,625.62,1.431]
[1771715031266,1.19331738,626.4,625.62,1.431]
[1771715033168,1.19331738,626.39,625.62,1.431]
[1771715034266,1.19331738,626.38,625.62,1.431]
[1771715035166,1.19331738,626.37,625.62,1.431]
[1771715036073,1.19331738,626.36,625.62,1.431]
[1771715036769,1.19331738,626.35,625.62,1.431]
[1771715037173,1.19331738,626.34,625.62,1.431]
[1771715037473,1.19331738,626.34,625.5,1.86995738]
[1771715039279,1.19331738,626.32,625.5,1.86995738]
[1771715040582,1.19331738,626.29,625.5,0.27788203]
[1771715041579,1.19331738,626.29,625.51,1.706]
[1771715041778,1.19331738,626.28,625.51,1.706]
[1771715045180,1.19331738,626.23,625.51,1.706]
[1771715046384,3.97653623,626.9,625.51,1.706]
[1771715046385,1.19331738,626.22,625.51,1.706]
[1771715055197,1.19331738,626.21,625.51,1.706]
[1771715057095,1.19331738,626.2,625.51,1.706]
[1771715058301,1.19331738,626.21,625.51,1.706]
[1771715060999,1.19331738,626.22,625.51,1.706]
[1771715061203,1.19331738,626.28,625.53,1.59207535]
[1771715061504,1.19331738,626.28,624.9,3.97415369]
[1771715061505,3.97653623,626.96,625.46,1.31376552]
[1771715061804,1.58812965,625.48,625.46,1.31376552]
[1771715062004,1.58812965,625.49,625.46,1.31376552]
[1771715062204,2.38219448,625.6,625.46,1.31376552]
[1771715062205,1.58812965,625.51,625.46,1.31376552]
[1771715062406,0.98974547,625.59,625.46,1.31376552]
[1771715062407,0.98974547,625.5,625.46,1.31376552]
[1771715062606,0.98974547,625.49,625.46,1.31376552]
[1771715062805,0.98974547,625.48,625.46,1.31376552]
[1771715063002,0.98974547,625.47,625.46,1.31376552]
[1771715070208,1.18602129,625.67,625.46,1.31376552]
[1771715070513,0.98098665,625.66,625.46,1.31376552]
[1771715070710,1.18602129,625.68,625.46,1.31376552]
[1771715070711,0.98098665,625.65,625.46,1.31376552]
[1771715070908,0.98098665,625.64,625.46,1.31376552]
[1771715071212,0.98098665,625.63,625.46,1.31376552]
[1771715071507,0.98098665,625.62,625.46,1.31376552]
[1771715071711,0.98098665,625.61,625.46,1.31376552]
[1771715071911,0.98098665,625.6,625.46,1.31376552]
[1771715072113,0.27824863,625.79,625.46,1.31376552]
[1771715072114,0.98098665,625.59,625.46,1.31376552]
[1771715072313,0.98098665,625.58,625.46,1.31376552]
[1771715072608,0.98098665,625.57,625.46,1.31376552]
[1771715072808,0.98098665,625.56,625.46,1.31376552]
[1771715073007,0.98098665,625.55,625.46,1.31376552]
[1771715073211,0.98098665,625.54,625.46,1.31376552]
[1771715073410,0.98098665,625.53,625.46,1.31376552]
[1771715073713,0.98098665,625.52,625.46,1.31376552]
[1771715073912,0.98098665,625.51,625.46,1.31376552]
[1771715074112,1.18602129,625.71,625.46,1.31376552]
[1771715074313,0.97921229,625.7,625.46,1.31376552]
[1771715074514,0.97921229,625.69,625.46,1.31376552]
[1771715074709,0.97921229,625.68,625.46,1.31376552]
[1771715074914,0.97921229,625.67,625.46,1.31376552]
[1771715075112,0.97921229,625.66,625.46,1.31376552]
[1771715075314,0.97921229,625.65,625.46,1.31376552]
[1771715075612,0.97921229,625.64,625.46,1.31376552]
[1771715075814,0.97921229,625.63,625.46,1.31376552]
[1771715076114,0.97921229,625.62,625.46,1.31376552]
[1771715076314,0.97921229,625.61,625.46,1.31376552]
[1771715076515,0.97921229,625.6,625.46,1.31376552]
[1771715076810,0.97921229,625.59,625.46,1.31376552]
[1771715077011,0.97921229,625.58,625.46,1.31376552]
[1771715077211,0.97921229,625.57,625.46,1.31376552]
[1771715077408,1.18602129,625.73,625.46,1.31376552]
[1771715077409,0.97921229,625.56,625.46,1.31376552]
[1771715077612,0.97921229,625.55,625.46,1.31376552]
[1771715077814,0.97921229,625.54,625.46,1.31376552]
[1771715078015,0.97921229,625.53,625.46,1.31376552]
[1771715078314,1.18602129,625.73,625.46,1.31376552]
[1771715078513,0.97836646,625.72,625.46,1.31376552]
[1771715078717,0.97836646,625.71,625.46,1.31376552]
[1771715078916,0.97836646,625.7,625.46,1.31376552]
[1771715079118,0.97836646,625.69,625.46,1.31376552]
[1771715079415,0.97836646,625.68,625.46,1.31376552]
[1771715079613,1.18602129,625.74,625.46,1.31376552]
[1771715079614,0.97836646,625.67,625.46,1.31376552]
[1771715079813,0.97836646,625.66,625.46,1.31376552]
[1771715080114,0.97836646,625.65,625.46,1.31376552]
[1771715080413,0.97836646,625.64,625.46,1.31376552]
[1771715080617,0.97836646,625.63,625.46,1.31376552]
[1771715080817,0.97836646,625.62,625.46,1.31376552]
[1771715081016,0.97836646,625.61,625.46,1.31376552]
[1771715081313,0.97836646,625.6,625.46,1.31376552]
[1771715081517,0.97836646,625.59,625.46,1.31376552]
[1771715081717,0.97836646,625.58,625.46,1.31376552]
[1771715081916,0.97836646,625.57,625.46,1.31376552]
[1771715082117,0.97836646,625.56,625.46,1.31376552]
[1771715082318,0.97836646,625.55,625.46,1.31376552]
[1771715082615,0.97836646,625.54,625.46,1.31376552]
[1771715082815,1.18602129,625.74,625.46,1.31376552]
[1771715083016,0.97829709,625.73,625.46,1.31376552]
[1771715083214,2.16431838,625.73,625.46,1.31376552]
[1771715083517,0.97829709,625.72,625.46,1.31376552]
[1771715084918,2.16431838,625.72,625.46,1.31376552]
[1771715085122,0.97829709,625.71,625.46,1.31376552]
[1771715086219,1.18602129,625.6,625.46,1.31376552]
[1771715086421,1.18602129,625.55,625.46,1.31376552]
[1771715086621,0.97829709,625.54,625.46,1.31376552]
[1771715086821,0.97829709,625.53,625.46,1.31376552]
[1771715087018,0.97829709,625.52,625.46,1.31376552]
[1771715087217,0.97829709,625.51,625.46,1.31376552]
[1771715087419,0.97829709,625.5,625.46,1.31376552]
[1771715087618,0.97829709,625.49,625.46,1.31376552]
[1771715087818,0.97829709,625.48,625.46,1.31376552]
[1771715088119,0.97829709,625.47,625.46,1.31376552]
[1771715099231,2.16431838,625.47,625.46,1.31376552]
[1771715099635,0.97829709,625.47,625.46,1.31376552]
[1771715106537,2.56331676,625.47,625.46,1.31376552]
[1771715107437,0.97829709,625.47,625.46,1.31376552]
[1771715114245,1.18914329,625.67,625.46,1.31376552]
[1771715114444,0.9801538,625.66,625.46,1.31376552]
[1771715114644,0.9801538,625.65,625.46,1.31376552]
[1771715114841,0.9801538,625.64,625.46,1.31376552]
[1771715115143,0.9801538,625.63,625.46,1.31376552]
[1771715115344,0.9801538,625.62,625.46,1.31376552]
[1771715115544,0.9801538,625.61,625.46,1.31376552]
[1771715115744,0.9801538,625.6,625.46,1.31376552]
[1771715115945,0.9801538,625.59,625.46,1.31376552]
[1771715116244,0.9801538,625.58,625.46,1.31376552]
[1771715116441,0.9801538,625.57,625.46,1.31376552]
[1771715116645,0.9801538,625.56,625.46,1.31376552]
[1771715116944,0.9801538,625.55,625.46,1.31376552]
[1771715117242,0.9801538,625.54,625.46,1.31376552]
[1771715117540,1.18914329,625.71,625.46,1.31376552]
[1771715117541,0.9801538,625.53,625.46,1.31376552]
[1771715117842,0.9801538,625.52,625.46,1.31376552]
[1771715118041,0.9801538,625.51,625.46,1.31376552]
[1771715118240,1.18914329,625.71,625.46,1.31376552]
[1771715118445,0.97883736,625.7,625.46,1.31376552]
[1771715118640,0.97883736,625.69,625.46,1.31376552]
[1771715118842,0.97883736,625.68,625.46,1.31376552]
[1771715119142,0.97883736,625.67,625.46,1.31376552]
[1771715119343,0.97883736,625.66,625.46,1.31376552]
[1771715119545,0.97883736,625.65,625.46,1.31376552]
[1771715119741,0.97883736,625.64,625.46,1.31376552]
[1771715119946,0.97883736,625.63,625.46,1.31376552]
[1771715120143,0.97883736,625.62,625.46,1.31376552]
[1771715120347,0.97883736,625.61,625.46,1.31376552]
[1771715120547,0.97883736,625.6,625.46,1.31376552]
[1771715120744,0.97883736,625.59,625.46,1.31376552]
[1771715121046,0.97883736,625.58,625.46,1.31376552]
[1771715121244,2.38219448,625.96,625.46,1.31376552]
[1771715121245,0.97883736,625.57,625.46,1.31376552]
[1771715121548,0.97883736,625.56,625.46,1.31376552]
[1771715121744,0.97883736,625.55,625.46,1.31376552]
[1771715121949,1.18914329,625.75,625.46,1.31376552]
[1771715122149,0.97830224,625.74,625.46,1.31376552]
[1771715122350,0.97830224,625.73,625.46,1.31376552]
[1771715122546,0.97830224,625.72,625.46,1.31376552]
[1771715122847,0.97830224,625.71,625.46,1.31376552]
[1771715123045,0.97830224,625.7,625.46,1.31376552]
[1771715123345,0.97830224,625.69,625.46,1.31376552]
[1771715123552,0.97830224,625.68,625.46,1.31376552]
[1771715123748,1.18914329,625.76,625.46,1.31376552]
[1771715123749,0.97830224,625.67,625.46,1.31376552]
[1771715123954,0.97830224,625.66,625.46,1.31376552]
[1771715124253,0.97830224,625.65,625.46,1.31376552]
[1771715124449,0.97830224,625.64,625.46,1.31376552]
[1771715124654,0.97830224,625.63,625.46,1.31376552]
[1771715124950,0.97830224,625.62,625.46,1.31376552]
[1771715125154,0.97830224,625.61,625.46,1.31376552]
[1771715125350,0.97830224,625.6,625.46,1.31376552]
[1771715125550,0.97830224,625.59,625.46,1.31376552]
[1771715125751,0.97830224,625.58,625.46,1.31376552]
[1771715125951,0.97830224,625.57,625.46,1.31376552]
[1771715126151,0.97830224,625.56,625.46,1.31376552]
[1771715126351,0.97830224,625.55,625.46,1.31376552]
[1771715126550,1.18914329,625.65,625.46,1.31376552]
[1771715126551,0.97830224,625.54,625.46,1.31376552]
[1771715126750,0.97830224,625.53,625.46,1.31376552]
[1771715126950,0.97830224,625.52,625.46,1.31376552]
[1771715127150,0.97830224,625.51,625.46,1.31376552]
[1771715127352,1.18914329,625.77,625.46,1.31376552]
[1771715127554,0.96709923,625.76,625.46,1.31376552]
[1771715127852,0.96709923,625.75,625.46,1.31376552]
[1771715128154,0.96709923,625.74,625.46,1.31376552]
[1771715128350,1.18914329,625.77,625.46,1.31376552]
[1771715128351,0.96709923,625.73,625.46,1.31376552]
[1771715128553,0.96709923,625.72,625.46,1.31376552]
[1771715128754,0.96709923,625.71,625.46,1.31376552]
[1771715128952,0.96709923,625.7,625.46,1.31376552]
[1771715129152,0.96709923,625.69,625.46,1.31376552]
[1771715129354,0.96709923,625.68,625.46,1.31376552]
[1771715129553,0.96709923,625.67,625.46,1.31376552]
[1771715129854,0.96709923,625.66,625.46,1.31376552]
[1771715130054,0.96709923,625.65,625.46,1.31376552]
[1771715130254,0.96709923,625.64,625.46,1.31376552]
[1771715130453,1.18914329,625.78,625.46,1.31376552]
[1771715130454,0.96709923,625.63,625.46,1.31376552]
[1771715130653,0.96709923,625.62,625.46,1.31376552]
[1771715130855,0.96709923,625.61,625.46,1.31376552]
[1771715131156,0.96709923,625.6,625.46,1.31376552]
[1771715131355,0.96709923,625.59,625.46,1.31376552]
[1771715131554,0.96709923,625.58,625.46,1.31376552]
[1771715131758,1.18914329,625.78,625.46,1.31376552]
[1771715131954,0.96680326,625.77,625.46,1.31376552]
[1771715132254,0.96680326,625.76,625.46,1.31376552]
[1771715132456,0.96680326,625.75,625.46,1.31376552]
[1771715132661,0.96680326,625.74,625.46,1.31376552]
[1771715132956,0.96680326,625.73,625.46,1.31376552]
[1771715133161,0.96680326,625.72,625.46,1.31376552]
[1771715133363,0.96680326,625.71,625.46,1.31376552]
[1771715133661,0.96680326,625.7,625.46,1.31376552]
[1771715133957,0.96680326,625.69,625.46,1.31376552]
[1771715134160,0.96680326,625.68,625.46,1.31376552]
[1771715134358,0.96680326,625.67,625.46,1.31376552]
[1771715134661,0.96680326,625.66,625.46,1.31376552]
[1771715134856,0.96680326,625.65,625.46,1.31376552]
[1771715135061,0.96680326,625.64,625.46,1.31376552]
[1771715135362,0.96680326,625.63,625.46,1.31376552]
[1771715135661,0.96680326,625.62,625.46,1.31376552]
[1771715135861,0.96680326,625.61,625.46,1.31376552]
[1771715136062,0.96680326,625.6,625.46,1.31376552]
[1771715136262,0.96680326,625.59,625.46,1.31376552]
[1771715136460,0.96680326,625.58,625.46,1.31376552]
[1771715136663,0.96680326,625.57,625.46,1.31376552]
[1771715136863,0.96680326,625.56,625.46,1.31376552]
[1771715137063,1.18914329,625.76,625.46,1.31376552]
[1771715137364,2.15692405,625.75,625.46,1.31376552]
[1771715137659,0.96778076,625.74,625.46,1.31376552]
[1771715137859,0.96778076,625.73,625.46,1.31376552]
[1771715138159,0.96778076,625.72,625.46,1.31376552]
[1771715138363,0.96778076,625.71,625.46,1.31376552]
[1771715138559,0.96778076,625.7,625.46,1.31376552]
[1771715138765,0.96778076,625.69,625.46,1.31376552]
[1771715138965,0.96778076,625.68,625.46,1.31376552]
[1771715139165,0.96778076,625.67,625.46,1.31376552]
[1771715139366,0.96778076,625.66,625.46,1.31376552]
[1771715139562,0.96778076,625.65,625.46,1.31376552]
[1771715139766,0.96778076,625.64,625.46,1.31376552]
[1771715139965,0.96778076,625.63,625.46,1.31376552]
[1771715140269,0.96778076,625.62,625.46,1.31376552]
[1771715140566,0.96778076,625.61,625.46,1.31376552]
[1771715140766,0.96778076,625.6,625.46,1.31376552]
[1771715140965,0.96778076,625.59,625.46,1.31376552]
[1771715141165,0.96778076,625.58,625.46,1.31376552]
[1771715141364,0.96778076,625.57,625.46,1.31376552]
[1771715141568,0.96778076,625.56,625.46,1.31376552]
[1771715141768,0.96778076,625.55,625.46,1.31376552]
[1771715141967,0.96778076,625.54,625.46,1.31376552]
[1771715142162,0.96778076,625.53,625.46,1.31376552]
[1771715142368,0.96778076,625.52,625.46,1.31376552]
[1771715142665,1.18914329,625.72,625.46,1.31376552]
[1771715142869,0.96915765,625.71,625.46,1.31376552]
[1771715143063,0.96915765,625.7,625.46,1.31376552]
[1771715143268,0.96915765,625.69,625.46,1.31376552]
[1771715143468,0.96915765,625.68,625.46,1.31376552]
[1771715143764,0.96915765,625.67,625.46,1.31376552]
[1771715143968,0.96915765,625.66,625.46,1.31376552]
[1771715144169,0.96915765,625.65,625.46,1.31376552]
[1771715144369,0.96915765,625.64,625.46,1.31376552]
[1771715144669,0.96915765,625.63,625.46,1.31376552]
[1771715144968,0.96915765,625.62,625.46,1.31376552]
[1771715145168,0.96915765,625.61,625.46,1.31376552]
[1771715145370,0.96915765,625.6,625.46,1.31376552]
[1771715145568,0.96915765,625.59,625.46,1.31376552]
[1771715145764,0.96915765,625.58,625.46,1.31376552]
[1771715145965,0.96915765,625.57,625.46,1.31376552]
[1771715146166,0.96915765,625.56,625.46,1.31376552]
[1771715146469,0.96915765,625.55,625.46,1.31376552]
[1771715146670,0.96915765,625.54,625.46,1.31376552]
[1771715146872,0.96915765,625.53,625.46,1.31376552]
[1771715147070,0.96915765,625.52,625.46,1.31376552]
[1771715147267,0.96915765,625.51,625.46,1.31376552]
[1771715147468,0.96915765,625.5,625.46,1.31376552]
[1771715147668,0.96915765,625.49,625.46,1.31376552]
[1771715147872,1.18914329,625.69,625.46,1.31376552]
[1771715148073,0.97052714,625.68,625.46,1.31376552]
[1771715148268,2.15967043,625.68,625.46,1.31376552]
[1771715148475,0.97052714,625.67,625.46,1.31376552]
[1771715149071,2.15967043,625.67,625.46,1.31376552]
[1771715149268,0.97052714,625.66,625.46,1.31376552]
[1771715149471,0.97052714,625.65,625.46,1.31376552]
[1771715149773,0.97052714,625.64,625.46,1.31376552]
[1771715149969,0.97052714,625.63,625.46,1.31376552]
[1771715150172,0.97052714,625.62,625.46,1.31376552]
[1771715150472,0.97052714,625.61,625.46,1.31376552]
[1771715150772,0.97052714,625.6,625.46,1.31376552]
[1771715150972,0.97052714,625.59,625.46,1.31376552]
[1771715151174,0.97052714,625.58,625.46,1.31376552]
[1771715151470,0.97052714,625.57,625.46,1.31376552]
[1771715151672,0.97052714,625.56,625.46,1.31376552]
[1771715151871,0.97052714,625.55,625.46,1.31376552]
[1771715152075,0.97052714,625.54,625.46,1.31376552]
[1771715152271,0.97052714,625.53,625.46,1.31376552]
[1771715152477,0.97052714,625.52,625.46,1.31376552]
[1771715152676,0.97052714,625.51,625.46,1.31376552]
[1771715152873,0.97052714,625.5,625.46,1.31376552]
[1771715153077,0.97052714,625.49,625.46,1.31376552]
[1771715153278,0.97052714,625.48,625.46,1.31376552]
[1771715153476,0.97052714,625.47,625.46,1.31376552]
[1771715153980,1.18914329,625.65,625.46,1.31376552]
[1771715154175,2.15967043,625.64,625.46,1.31376552]
[1771715154376,0.97052714,625.63,625.46,1.31376552]
[1771715154575,0.97052714,625.62,625.46,1.31376552]
[1771715154773,0.97052714,625.61,625.46,1.31376552]
[1771715154974,0.97052714,625.6,625.46,1.31376552]
[1771715155280,0.97052714,625.59,625.46,1.31376552]
[1771715155574,0.97052714,625.58,625.46,1.31376552]
[1771715155875,0.97052714,625.57,625.46,1.31376552]
[1771715156078,0.97052714,625.56,625.46,1.31376552]
[1771715156274,0.97052714,625.55,625.46,1.31376552]
[1771715156477,0.97052714,625.54,625.46,1.31376552]
[1771715156674,0.97052714,625.53,625.46,1.31376552]
[1771715156879,0.97052714,625.52,625.46,1.31376552]
[1771715157174,0.97052714,625.51,625.46,1.31376552]
[1771715157373,0.97052714,625.5,625.46,1.31376552]
[1771715157578,0.97052714,625.49,625.46,1.31376552]
[1771715157776,0.97052714,625.48,625.46,1.31376552]
[1771715157976,0.96916702,625.47,625.46,1.31376552]
[1771715158777,1.19188994,625.69,625.46,1.31376552]
[1771715159281,0.96921236,625.68,625.46,1.31376552]
[1771715159477,0.96921236,625.67,625.46,1.31376552]
[1771715159778,0.96921236,625.66,625.46,1.31376552]
[1771715159977,0.96921236,625.65,625.46,1.31376552]
[1771715160180,0.96921236,625.64,625.46,1.31376552]
[1771715160384,0.96921236,625.63,625.46,1.31376552]
[1771715160580,0.96921236,625.62,625.46,1.31376552]
[1771715160781,0.96921236,625.61,625.46,1.31376552]
[1771715160984,1.19188994,625.7,625.46,1.31376552]
[1771715160985,0.96921236,625.6,625.46,1.31376552]
[1771715161185,0.96921236,625.59,625.46,1.31376552]
[1771715161387,0.96921236,625.58,625.46,1.31376552]
[1771715161586,0.96921236,625.57,625.46,1.31376552]
[1771715161787,0.96921236,625.56,625.46,1.31376552]
[1771715161987,0.96921236,625.55,625.46,1.31376552]
[1771715162183,0.96921236,625.54,625.46,1.31376552]
[1771715162383,0.96921236,625.53,625.46,1.31376552]
[1771715162685,0.96921236,625.52,625.46,1.31376552]
[1771715162889,0.96921236,625.51,625.46,1.31376552]
[1771715163089,0.96921236,625.5,625.46,1.31376552]
[1771715163389,1.19188994,625.7,625.46,1.31376552]
[1771715163589,0.96889023,625.69,625.46,1.31376552]
[1771715163889,0.96889023,625.68,625.46,1.31376552]
[1771715164184,0.96889023,625.67,625.46,1.31376552]
[1771715164388,0.96889023,625.66,625.46,1.31376552]
[1771715164588,0.96889023,625.65,625.46,1.31376552]
[1771715164788,0.96889023,625.64,625.46,1.31376552]
[1771715164988,0.96889023,625.63,625.46,1.31376552]
[1771715165189,0.96889023,625.62,625.46,1.31376552]
[1771715165490,0.96889023,625.61,625.46,1.31376552]
[1771715165684,0.96889023,625.6,625.46,1.31376552]
[1771715165888,1.19188994,625.71,625.46,1.31376552]
[1771715165889,0.96889023,625.59,625.46,1.31376552]
[1771715166088,0.96889023,625.58,625.46,1.31376552]
[1771715166290,0.96889023,625.57,625.46,1.31376552]